fUST/lending_fUST_20250809
["ID","MTS","AMOUNT","RATE_DAILY","PERIOD"]
[378015082,1754668886844,2240.87563869,0.000199,2]
[378015083,1754668886940,2240.8756386,0.00021655,2]
[378015084,1754668887057,2240.8756386,0.00023409,2]
[378015085,1754668891881,200.0,0.00030127,120]
[378015091,1754669070347,2016.78807474,0.000199,2]
[378015092,1754669070458,2016.78807474,0.00021655,2]
[378015093,1754669070568,2016.78807474,0.00023409,2]
[378015103,1754669169029,261.11642068,0.00023409,2]
[378015105,1754669249620,1815.10926744,0.000199,2]
[378015106,1754669249717,1815.10926726,0.00021655,2]
[378015107,1754669249810,1815.10926726,0.00023409,2]
[378015115,1754669378347,908.09200788,0.00023292,10]
[378015116,1754669378409,908.09200788,0.00023525,10]
[378015117,1754669378466,825.00987768,0.00023758,12]
[378015118,1754669411185,210.36214005,0.00023096,9]
[378015158,1754669432192,-160.0,0.00024498,2]
[378015160,1754669432201,-1200.0,0.00024498,2]
[378015161,1754669432212,-300.0,0.00024499,2]
[378015162,1754669432221,-300.0,0.00024499,2]
[378015164,1754669432231,-300.0,0.00024499,2]
[378015166,1754669432240,-300.0,0.00024499,2]
[378015167,1754669432250,-15955.73,0.000245,2]
[378015168,1754669432259,-253.29003,0.00024693,2]
[378015169,1754669432268,-460.0,0.00024693,2]
[378015170,1754669432278,-460.0,0.00024693,2]
[378015172,1754669432287,-460.0,0.00024693,2]
[378015174,1754669432296,-460.0,0.00024693,2]
[378015176,1754669432305,-460.0,0.00024693,2]
[378015178,1754669432315,-460.0,0.00024694,2]
[378015179,1754669432324,-875.26,0.00024694,2]
[378015180,1754669432333,-460.0,0.00024694,2]
[378015181,1754669432342,-1080.75,0.00024694,2]
[378015182,1754669432352,-460.0,0.00024694,2]
[378015183,1754669432362,-460.0,0.00024694,2]
[378015184,1754669432371,-460.0,0.00024694,2]
[378015185,1754669432380,-460.0,0.00024694,2]
[378015186,1754669432391,-460.0,0.00024695,2]
[378015187,1754669432400,-460.0,0.00024695,2]
[378015188,1754669432410,-460.0,0.00024695,2]
[378015189,1754669432420,-89.72150467,0.00024695,2]
[378015256,1754669438254,-160.0,0.000245,2]
[378015258,1754669438264,-460.0,0.00024693,2]
[378015260,1754669438273,-460.0,0.00024694,2]
[378015262,1754669438282,-370.27849533,0.00024695,2]
[378015264,1754669438290,-141.74397055,0.00024695,2]
[378015690,1754669442453,-318.25602945,0.00024695,2]
[378015691,1754669442462,-460.0,0.00024695,2]
[378015693,1754669442472,-500.0,0.00024695,2]
[378015696,1754669442481,-460.0,0.00024695,2]
[378015699,1754669442490,-460.0,0.00024695,2]
[378015701,1754669442499,-465.9192075,0.00024695,2]
[378015703,1754669442509,-460.0,0.00024695,2]
[378015705,1754669442518,-460.2873812,0.00024695,2]
[378015707,1754669442527,-460.0,0.00024695,2]
[378015709,1754669442537,-460.0,0.00024695,2]
[378015711,1754669442546,-460.0,0.00024695,2]
[378015713,1754669442556,-460.0,0.00024695,2]
[378015715,1754669442565,-461.90936459,0.00024695,2]
[378015717,1754669442575,-460.0,0.00024695,2]
[378015719,1754669442583,-460.0,0.00024695,2]
[378015721,1754669442593,-460.0,0.00024695,2]
[378015722,1754669442603,-463.02509615,0.00024695,2]
[378015724,1754669442612,-460.0,0.00024695,2]
[378015726,1754669442622,-487.69625516,0.00024695,2]
[378015728,1754669442634,-460.0,0.00024695,2]
[378015730,1754669442643,-460.0,0.00024695,2]
[378015732,1754669442652,-460.0,0.00024695,2]
[378015734,1754669442662,-460.0,0.00024695,2]
[378015736,1754669442672,-460.0,0.00024695,2]
[378015738,1754669442681,-460.0,0.00024695,2]
[378015740,1754669442694,-460.0,0.00024695,2]
[378015742,1754669442704,-460.0,0.00024695,2]
[378015744,1754669442713,-460.0,0.00024695,2]
[378015746,1754669442723,-460.0,0.00024695,2]
[378015748,1754669442734,-460.0,0.00024695,2]
[378015750,1754669442743,-460.0,0.00024695,2]
[378015752,1754669442752,-460.0,0.00024695,2]
[378015754,1754669442763,-500.0,0.00024695,2]
[378015756,1754669442772,-268.43,0.00024851,2]
[378015758,1754669442782,-238.61,0.00024898,2]
[378015759,1754669442791,-460.0,0.00024967,2]
[378015761,1754669442801,-460.0,0.00024967,2]
[378015763,1754669442812,-460.0,0.00024967,2]
[378015765,1754669442824,-460.0,0.00024967,2]
[378015767,1754669442833,-460.0,0.00024967,2]
[378015769,1754669442842,-460.0,0.00024967,2]
[378015771,1754669442852,-460.0,0.00024968,2]
[378015773,1754669442861,-875.26,0.00024968,2]
[378015775,1754669442871,-1080.75,0.00024968,2]
[378015777,1754669442880,-460.0,0.00024968,2]
[378015779,1754669442890,-460.0,0.00024968,2]
[378015781,1754669442899,-460.0,0.00024968,2]
[378015783,1754669442908,-460.0,0.00024968,2]
[378015785,1754669442918,-460.0,0.00024969,2]
[378015786,1754669442927,-460.0,0.00024969,2]
[378015788,1754669442939,-460.0,0.00024969,2]
[378015790,1754669442948,-460.0,0.00024969,2]
[378015792,1754669442957,-460.0,0.00024969,2]
[378015794,1754669442967,-460.0,0.00024969,2]
[378015796,1754669442976,-460.0,0.00024969,2]
[378015798,1754669442985,-460.0,0.00024969,2]
[378015800,1754669442994,-597.91278731,0.00024969,2]
[378015802,1754669443003,-460.0,0.00024969,2]
[378015804,1754669443012,-460.0,0.00024969,2]
[378015806,1754669443022,-461.24219811,0.00024969,2]
[378015808,1754669443031,-463.19842376,0.00024969,2]
[378015810,1754669443041,-460.0,0.00024969,2]
[378015811,1754669443050,-460.0,0.00024969,2]
[378015813,1754669443060,-460.0,0.00024969,2]
[378015815,1754669443070,-460.0,0.00024969,2]
[378015817,1754669443079,-460.0,0.00024969,2]
[378015819,1754669443088,-460.0,0.00024969,2]
[378015821,1754669443098,-460.0,0.00024969,2]
[378015823,1754669443109,-462.96260095,0.00024969,2]
[378015825,1754669443118,-460.0,0.00025163,2]
[378015827,1754669443128,-460.0,0.00025163,2]
[378015829,1754669443138,-460.0,0.00025163,2]
[378015831,1754669443149,-581.27889751,0.00025163,2]
[378015833,1754669443158,-460.0,0.00025163,2]
[378015835,1754669443168,-460.0,0.00025163,2]
[378015837,1754669443178,-460.0,0.00025163,2]
[378015839,1754669443188,-460.0,0.00025163,2]
[378015841,1754669443197,-460.0,0.00025163,2]
[378015843,1754669443206,-460.0,0.00025163,2]
[378015845,1754669443220,-200.46251314,0.000252,2]
[378015847,1754669443232,-502.94869412,0.000252,2]
[378015849,1754669443241,-502.29650842,0.000252,2]
[378015851,1754669443250,-500.0,0.000252,2]
[378015853,1754669443259,-405.10657766,0.00025219,2]
[378015855,1754669443268,-464.70511731,0.00025222,2]
[378015856,1754669443277,-500.0,0.00025222,2]
[378015858,1754669443286,-500.0,0.00025222,2]
[378015860,1754669443295,-460.0,0.0002524,2]
[378015862,1754669443304,-460.0,0.00025241,2]
[378015864,1754669443313,-459.99381542,0.00025241,2]
[378015866,1754669443322,-460.0,0.00025241,2]
[378015868,1754669443331,-460.0,0.00025241,2]
[378015870,1754669443341,-460.0,0.00025241,2]
[378015872,1754669443350,-460.0,0.00025242,2]
[378015874,1754669443359,-460.0,0.00025242,2]
[378015876,1754669443368,-875.26,0.00025242,2]
[378015878,1754669443378,-1080.75,0.00025242,2]
[378015880,1754669443387,-460.0,0.00025242,2]
[378015881,1754669443396,-460.0,0.00025242,2]
[378015883,1754669443405,-102.32498114,0.00025242,2]
[378015962,1754669444241,1449.07213484,0.000199,2]
[378015963,1754669444292,-460.0,0.00024695,2]
[378015964,1754669444302,-460.0,0.00024969,2]
[378015965,1754669444311,-460.0,0.00025163,2]
[378015966,1754669444320,-357.67501886,0.00025242,2]
[378015967,1754669444330,-157.37608488,0.00025242,2]
[378015968,1754669444340,-500.0,0.00025242,2]
[378015969,1754669444349,-500.0,0.00025242,2]
[378015970,1754669444359,-500.0,0.00025242,2]
[378015971,1754669444368,-500.0,0.00025242,2]
[378015972,1754669444378,-500.0,0.00025242,2]
[378015973,1754669444387,-500.0,0.00025242,2]
[378015974,1754669444396,-500.0,0.00025242,2]
[378015975,1754669444405,-464.81418271,0.00025242,2]
[378016060,1754669445286,1449.07213457,0.00021655,2]
[378016073,1754669445394,1449.07213457,0.00023409,2]
[378020745,1754669706428,163.0,0.00025375,120]
[378020746,1754669726745,173.0,0.00023096,9]
[378020747,1754669733357,160.0,0.000242,7]
[378020751,1754669860470,22397.02,0.00031641,30]
[378020755,1754669911124,200.0,0.00030123,120]
[378020761,1754670043683,161.0,0.00023123,9]
[378020767,1754670357425,155.0,0.00023123,9]
[378020774,1754670462296,2040.63265768,0.00031644,30]
[378020775,1754670477577,248.7592054,0.00023765,2]
[378020780,1754670531068,95789.84786597,0.0002489,30]
[378020784,1754670561024,556.87821343,0.00027397,120]
[378020813,1754670632500,-160.0,0.00024498,2]
[378020815,1754670632511,-1200.0,0.00024498,2]
[378020817,1754670632520,-1039.02,0.00024499,2]
[378020820,1754670632532,-160.98,0.00024499,2]
[378020822,1754670632542,-300.0,0.00024499,2]
[378020823,1754670632552,-300.0,0.00024499,2]
[378020826,1754670632562,-300.0,0.00024499,2]
[378020827,1754670632571,-9631.1,0.000245,2]
[378020830,1754670632581,-10373.9,0.000245,2]
[378020832,1754670632591,-2304.68300599,0.00024595,2]
[378020834,1754670632600,-500.0,0.00024656,2]
[378020836,1754670632610,-500.0,0.00024656,2]
[378020838,1754670632620,-500.0,0.00024656,2]
[378020840,1754670632629,-500.0,0.00024656,2]
[378020842,1754670632638,-500.0,0.00024656,2]
[378020843,1754670632649,-325.42372802,0.00024656,2]
[378020846,1754670632659,-500.0,0.00024656,2]
[378020848,1754670632671,-500.0,0.00024656,2]
[378020850,1754670632680,-500.0,0.00024656,2]
[378020852,1754670632689,-500.0,0.00024656,2]
[378020854,1754670632699,-500.0,0.00024656,2]
[378020856,1754670632710,-500.0,0.00024656,2]
[378020858,1754670632719,-500.0,0.00024656,2]
[378020860,1754670632728,-500.0,0.00024656,2]
[378020862,1754670632737,-500.0,0.00024656,2]
[378020864,1754670632747,-500.0,0.00024656,2]
[378020866,1754670632757,-500.0,0.00024656,2]
[378020868,1754670632767,-500.0,0.00024656,2]
[378020870,1754670632776,-500.0,0.00024656,2]
[378020872,1754670632785,-500.0,0.00024656,2]
[378020874,1754670632795,-500.0,0.00024656,2]
[378020876,1754670632804,-500.0,0.00024656,2]
[378020878,1754670632814,-500.0,0.00024656,2]
[378020880,1754670632823,-253.81986813,0.00024656,2]
[378020882,1754670632832,-500.0,0.00024656,2]
[378020884,1754670632841,-500.0,0.00024656,2]
[378020886,1754670632850,-500.0,0.00024656,2]
[378020888,1754670632860,-500.0,0.00024656,2]
[378020890,1754670632870,-500.0,0.00024656,2]
[378020892,1754670632879,-500.0,0.00024656,2]
[378020894,1754670632889,-500.0,0.00024656,2]
[378020896,1754670632898,-500.0,0.00024656,2]
[378020897,1754670632908,-500.0,0.00024656,2]
[378020900,1754670632917,-500.0,0.00024656,2]
[378020901,1754670632927,-500.0,0.00024656,2]
[378020918,1754670633086,-500.0,0.00024656,2]
[378020920,1754670633098,-500.0,0.00024656,2]
[378020922,1754670633109,-500.0,0.00024656,2]
[378020924,1754670633119,-287.93334097,0.00024656,2]
[378020926,1754670633130,-500.0,0.00024656,2]
[378020928,1754670633140,-511.68476045,0.00024656,2]
[378020930,1754670633150,-500.0,0.00024656,2]
[378020932,1754670633160,-500.0,0.00024656,2]
[378020934,1754670633170,-500.0,0.00024656,2]
[378020936,1754670633179,-500.0,0.00024656,2]
[378020938,1754670633189,-500.0,0.00024656,2]
[378020939,1754670633199,-500.0,0.00024656,2]
[378020942,1754670633210,-500.0,0.00024656,2]
[378020943,1754670633219,-460.0,0.00024657,2]
[378020945,1754670633229,-460.0,0.00024657,2]
[378020947,1754670633239,-344.792922,0.00024657,2]
[378020949,1754670633250,-460.0,0.00024657,2]
[378020951,1754670633260,-460.0,0.00024657,2]
[378020953,1754670633271,-526.87540293,0.00024657,2]
[378020955,1754670633281,-460.0,0.00024657,2]
[378020957,1754670633291,-416.06567115,0.00024657,2]
[378020959,1754670633300,-460.0,0.00024657,2]
[378020961,1754670633311,-460.0,0.00024657,2]
[378020963,1754670633321,-460.0,0.00024657,2]
[378020965,1754670633331,-460.0,0.00024657,2]
[378020967,1754670633340,-460.0,0.00024657,2]
[378020969,1754670633350,-460.0,0.00024657,2]
[378020971,1754670633360,-237.45314715,0.00024657,2]
[378020973,1754670633370,-460.0,0.00024657,2]
[378020975,1754670633381,-461.66545177,0.00024657,2]
[378020977,1754670633391,-465.62504101,0.00024657,2]
[378020979,1754670633400,-460.0,0.00024657,2]
[378020981,1754670633410,-460.0,0.00024657,2]
[378020983,1754670633420,-462.60849014,0.00024657,2]
[378020985,1754670633429,-460.0,0.00024657,2]
[378020987,1754670633438,-460.0,0.00024657,2]
[378020989,1754670633447,-460.0,0.00024657,2]
[378020990,1754670633457,-460.0,0.00024657,2]
[378020992,1754670633467,-460.0,0.00024657,2]
[378020994,1754670633476,-460.0,0.00024657,2]
[378020996,1754670633486,-362.03160601,0.00024657,2]
[378020998,1754670633495,-460.0,0.00024657,2]
[378021000,1754670633505,-460.0,0.00024657,2]
[378021002,1754670633515,-460.83984285,0.00024657,2]
[378021004,1754670633524,-460.0,0.00024657,2]
[378021006,1754670633535,-460.0,0.00024657,2]
[378021008,1754670633544,-465.48600291,0.00024657,2]
[378021010,1754670633554,-439.41838842,0.00024657,2]
[378021012,1754670633564,-460.0,0.00024657,2]
[378021014,1754670633575,-156.49612572,0.00024657,2]
[378021016,1754670633586,-460.0,0.00024657,2]
[378021018,1754670633596,-460.0,0.00024657,2]
[378021020,1754670633606,-460.0,0.00024657,2]
[378021022,1754670633615,-460.0,0.00024657,2]
[378021024,1754670633625,-460.0,0.00024657,2]
[378021026,1754670633635,-460.0,0.00024657,2]
[378021028,1754670633645,-460.0,0.00024657,2]
[378021030,1754670633654,-465.90045722,0.00024657,2]
[378021032,1754670633665,-460.0,0.00024657,2]
[378021034,1754670633675,-460.0,0.00024657,2]
[378021036,1754670633685,-460.0,0.00024657,2]
[378021038,1754670633695,-241.02458018,0.00024657,2]
[378021040,1754670633706,-460.0,0.00024657,2]
[378021042,1754670633715,-460.0,0.00024657,2]
[378021044,1754670633726,-461.52926326,0.00024657,2]
[378021046,1754670633735,-460.0,0.00024657,2]
[378021048,1754670633745,-460.0,0.00024657,2]
[378021050,1754670633754,-460.0,0.00024657,2]
[378021052,1754670633764,-460.0,0.00024657,2]
[378021054,1754670633774,-460.0,0.00024657,2]
[378021056,1754670633784,-460.0,0.00024657,2]
[378021058,1754670633794,-460.0,0.00024657,2]
[378021060,1754670633803,-460.0,0.00024657,2]
[378021062,1754670633813,-460.0,0.00024657,2]
[378021064,1754670633823,-460.0,0.00024657,2]
[378021066,1754670633832,-460.0,0.00024657,2]
[378021068,1754670633842,-460.0,0.00024657,2]
[378021070,1754670633852,-460.0,0.00024657,2]
[378021072,1754670633862,-312.95544066,0.00024657,2]
[378021074,1754670633872,-540.32,0.00024657,2]
[378021076,1754670633881,-460.0,0.00024657,2]
[378021078,1754670633891,-460.0,0.00024657,2]
[378021080,1754670633900,-460.0,0.00024657,2]
[378021081,1754670633910,-460.0,0.00024657,2]
[378021083,1754670633920,-460.0,0.00024657,2]
[378021085,1754670633930,-460.0,0.00024657,2]
[378021087,1754670633940,-460.0,0.00024657,2]
[378021089,1754670633950,-460.0,0.00024657,2]
[378021091,1754670633962,-460.0,0.00024657,2]
[378021093,1754670633972,-460.0,0.00024657,2]
[378021096,1754670633982,-215.87054938,0.00024657,2]
[378021097,1754670633992,-460.0,0.00024657,2]
[378021099,1754670634002,-161.77256232,0.00024657,2]
[378021101,1754670634012,-460.0,0.00024657,2]
[378021103,1754670634022,-460.0,0.00024657,2]
[378021105,1754670634032,-460.0,0.00024657,2]
[378021107,1754670634043,-460.0,0.00024657,2]
[378021109,1754670634059,-460.0,0.00024657,2]
[378021111,1754670634069,-452.73850608,0.00024657,2]
[378021113,1754670634079,-460.0,0.00024657,2]
[378021115,1754670634089,-460.0,0.00024657,2]
[378021117,1754670634101,-287.2260713,0.00024657,2]
[378021119,1754670634111,-945.66,0.00024657,2]
[378021121,1754670634121,-493.57067686,0.00024657,2]
[378021123,1754670634132,-460.0,0.00024657,2]
[378021125,1754670634142,-460.0,0.00024657,2]
[378021127,1754670634152,-460.0,0.00024657,2]
[378021128,1754670634162,-460.0,0.00024657,2]
[378021129,1754670634172,-460.0,0.00024657,2]
[378021130,1754670634183,-230.30582454,0.00024657,2]
[378021131,1754670634193,-460.0,0.00024657,2]
[378021132,1754670634202,-460.0,0.00024657,2]
[378021133,1754670634213,-460.0,0.00024657,2]
[378021134,1754670634222,-765.86,0.00024657,2]
[378021135,1754670634232,-460.0,0.00024657,2]
[378021136,1754670634241,-460.0,0.00024657,2]
[378021137,1754670634251,-460.0,0.00024657,2]
[378021139,1754670634260,-460.0,0.00024657,2]
[378021141,1754670634270,-460.73414518,0.00024657,2]
[378021143,1754670634279,-461.34788922,0.00024657,2]
[378021145,1754670634288,-460.0,0.00024657,2]
[378021147,1754670634298,-460.0,0.00024657,2]
[378021149,1754670634308,-460.0,0.00024657,2]
[378021151,1754670634317,-460.0,0.00024657,2]
[378021153,1754670634328,-349.36129447,0.00024657,2]
[378021155,1754670634337,-460.0,0.00024657,2]
[378021157,1754670634347,-460.0,0.00024657,2]
[378021159,1754670634356,-480.35489582,0.00024657,2]
[378021161,1754670634366,-460.0,0.00024657,2]
[378021163,1754670634375,-460.0,0.00024657,2]
[378021165,1754670634384,-460.0,0.00024657,2]
[378021167,1754670634394,-460.0,0.00024657,2]
[378021168,1754670634403,-460.0,0.00024657,2]
[378021170,1754670634412,-483.87262586,0.00024657,2]
[378021172,1754670634423,-460.0,0.00024657,2]
[378021174,1754670634434,-460.0,0.00024657,2]
[378021176,1754670634443,-460.0,0.00024657,2]
[378021178,1754670634453,-460.0,0.00024657,2]
[378021180,1754670634463,-460.0,0.00024657,2]
[378021182,1754670634472,-460.0,0.00024657,2]
[378021184,1754670634482,-460.0,0.00024657,2]
[378021186,1754670634491,-460.0,0.00024657,2]
[378021188,1754670634500,-460.0,0.00024657,2]
[378021190,1754670634510,-460.0,0.00024657,2]
[378021191,1754670634519,-460.0,0.00024657,2]
[378021193,1754670634529,-460.0,0.00024657,2]
[378021194,1754670634538,-460.0,0.00024657,2]
[378021196,1754670634547,-460.0,0.00024657,2]
[378021198,1754670634556,-460.74466304,0.00024657,2]
[378021200,1754670634565,-460.0,0.00024657,2]
[378021201,1754670634575,-159.69276201,0.00024657,2]
[378021202,1754670634584,-460.0,0.00024657,2]
[378021203,1754670634594,-460.0,0.00024657,2]
[378021204,1754670634603,-460.0,0.00024657,2]
[378021205,1754670634612,-460.0,0.00024657,2]
[378021206,1754670634622,-460.83918595,0.00024657,2]
[378021207,1754670634631,-460.0,0.00024657,2]
[378021208,1754670634641,-460.0,0.00024657,2]
[378021209,1754670634650,-460.0,0.00024657,2]
[378021210,1754670634659,-646.26358049,0.00024673,2]
[378021211,1754670634669,-500.0,0.00024673,2]
[378021212,1754670634679,-500.0,0.00024673,2]
[378021213,1754670634688,-500.0,0.00024673,2]
[378021214,1754670634697,-500.0,0.00024673,2]
[378021215,1754670634707,-500.0,0.00024673,2]
[378021216,1754670634717,-500.0,0.00024673,2]
[378021217,1754670634726,-615.25537796,0.00024673,2]
[378021218,1754670634735,-500.0,0.00024673,2]
[378021219,1754670634744,-187.8,0.00024685,3]
[378021220,1754670634753,-563.4,0.00024685,3]
[378021221,1754670634763,-540.32,0.00024692,2]
[378021222,1754670634772,-4924.99,0.00024692,2]
[378021223,1754670634782,-460.0,0.00024693,2]
[378021224,1754670634791,-460.0,0.00024693,2]
[378021225,1754670634801,-460.0,0.00024693,2]
[378021226,1754670634810,-460.0,0.00024693,2]
[378021227,1754670634820,-460.0,0.00024693,2]
[378021228,1754670634829,-460.0,0.00024693,2]
[378021229,1754670634838,-460.0,0.00024693,2]
[378021230,1754670634847,-460.0,0.00024693,2]
[378021231,1754670634857,-540.32,0.00024693,2]
[378021232,1754670634866,-460.0,0.00024693,2]
[378021233,1754670634876,-460.0,0.00024693,2]
[378021234,1754670634886,-460.0,0.00024693,2]
[378021235,1754670634896,-460.0,0.00024693,2]
[378021236,1754670634905,-460.0,0.00024693,2]
[378021237,1754670634915,-460.0,0.00024693,2]
[378021238,1754670634924,-460.0,0.00024693,2]
[378021239,1754670634934,-460.0,0.00024693,2]
[378021240,1754670634944,-460.0,0.00024693,2]
[378021241,1754670634953,-460.0,0.00024693,2]
[378021242,1754670634963,-460.0,0.00024693,2]
[378021243,1754670634972,-460.0,0.00024693,2]
[378021244,1754670634982,-460.0,0.00024693,2]
[378021245,1754670634991,-460.0,0.00024694,2]
[378021246,1754670635000,-460.0,0.00024694,2]
[378021247,1754670635010,-540.32,0.00024694,2]
[378021248,1754670635019,-540.32,0.00024694,2]
[378021249,1754670635028,-460.0,0.00024694,2]
[378021250,1754670635038,-460.0,0.00024694,2]
[378021251,1754670635047,-460.0,0.00024694,2]
[378021252,1754670635061,-460.0,0.00024695,2]
[378021253,1754670635070,-461.08711609,0.00024695,2]
[378021254,1754670635080,-460.0,0.00024695,2]
[378021255,1754670635089,-462.00146883,0.00024695,2]
[378021256,1754670635100,-462.07969999,0.00024695,2]
[378021257,1754670635110,-461.49152223,0.00024695,2]
[378021258,1754670635119,-460.0,0.00024695,2]
[378021259,1754670635128,-460.0,0.00024695,2]
[378021260,1754670635140,-460.49339507,0.00024695,2]
[378021261,1754670635151,-460.0,0.00024695,2]
[378021262,1754670635160,-462.08803077,0.00024695,2]
[378021263,1754670635170,-460.0,0.00024695,2]
[378021264,1754670635179,-460.0,0.00024695,2]
[378021265,1754670635189,-460.0,0.00024695,2]
[378021266,1754670635198,-379.49281714,0.00024695,2]
[378021267,1754670635209,-460.0,0.00024695,2]
[378021268,1754670635218,-460.0,0.00024695,2]
[378021269,1754670635229,-460.0,0.00024695,2]
[378021270,1754670635238,-457.85216719,0.00024695,2]
[378021271,1754670635248,-460.0,0.00024695,2]
[378021272,1754670635257,-460.53495081,0.00024695,2]
[378021273,1754670635267,-448.67371573,0.00024695,2]
[378021274,1754670635276,-460.0,0.00024695,2]
[378021275,1754670635286,-460.0,0.00024695,2]
[378021276,1754670635297,-460.0,0.00024695,2]
[378021277,1754670635307,-460.0,0.00024695,2]
[378021278,1754670635319,-500.0,0.00024695,2]
[378021279,1754670635332,-460.0,0.00024695,2]
[378021280,1754670635341,-460.0,0.00024695,2]
[378021281,1754670635350,-460.0,0.00024695,2]
[378021282,1754670635361,-460.0,0.00024695,2]
[378021283,1754670635370,-460.0,0.00024695,2]
[378021284,1754670635380,-460.0,0.00024695,2]
[378021285,1754670635389,-460.61449289,0.00024695,2]
[378021286,1754670635400,-503.70174296,0.00024695,2]
[378021287,1754670635410,-460.0,0.00024695,2]
[378021288,1754670635421,-460.0,0.00024695,2]
[378021289,1754670635431,-462.750647,0.00024695,2]
[378021290,1754670635440,-460.0,0.00024695,2]
[378021291,1754670635453,-454.0,0.00024695,2]
[378021292,1754670635462,-460.0,0.00024695,2]
[378021293,1754670635472,-460.0,0.00024695,2]
[378021294,1754670635481,-460.0,0.00024695,2]
[378021295,1754670635491,-460.0,0.00024695,2]
[378021296,1754670635505,-500.0,0.00024695,2]
[378021297,1754670635515,-460.0,0.00024695,2]
[378021298,1754670635525,-341.4,0.00024695,2]
[378021299,1754670635535,-460.0,0.00024695,2]
[378021300,1754670635545,-460.0,0.00024695,2]
[378021301,1754670635554,-456.9492514,0.00024695,2]
[378021302,1754670635564,-460.0,0.00024695,2]
[378021303,1754670635573,-460.0,0.00024695,2]
[378021304,1754670635583,-460.0,0.00024695,2]
[378021305,1754670635592,-553.49,0.00024695,2]
[378021306,1754670635602,-460.0,0.00024695,2]
[378021307,1754670635611,-460.0,0.00024695,2]
[378021308,1754670635621,-540.32,0.00024701,2]
[378021309,1754670635631,-2304.68300595,0.00024731,2]
[378021310,1754670635642,-842.78739015,0.00024733,2]
[378021311,1754670635651,-160.0,0.00024733,2]
[378021312,1754670635661,-160.0,0.00024733,2]
[378021313,1754670635670,-160.0,0.00024733,2]
[378021314,1754670635679,-215.36146706,0.00024733,2]
[378021315,1754670635688,-461.45099301,0.00024733,2]
[378021316,1754670635698,-160.0,0.00024733,2]
[378021317,1754670635708,-160.0,0.00024733,2]
[378021318,1754670635718,-160.0,0.00024733,2]
[378021319,1754670635727,-1427.66792027,0.00024767,2]
[378021320,1754670635737,-501.68813969,0.00024797,2]
[378021321,1754670635746,-51908.1629147,0.00024798,2]
[378021322,1754670635762,-379.46315404,0.00024798,2]
[378021323,1754670635773,-2396.00307459,0.00024798,2]
[378021324,1754670635785,-18821.6809123,0.00024798,2]
[378021325,1754670638189,-461.07810939,0.00024657,2]
[378021326,1754670638199,-487.12197816,0.00024797,2]
[378021327,1754670638209,-50642.34292303,0.00024798,2]
[378021328,1754670638221,-9634.77232594,0.00024798,2]
[378021329,1754670638322,-3963.80000001,0.00024798,2]
[378021395,1754670640367,-1013.48518792,0.00024798,2]
[378021731,1754670643991,-8859.44,0.00024798,2]
[378021963,1754670646276,-460.0,0.00024694,2]
[378021965,1754670646286,-460.0,0.00024695,2]